bitfinex/quotes_SOLUSD_20251009
["timestamp","ask_amount","ask_price","bid_price","bid_amount"]
[1760023833722,4.02021563,219.78,219.69,0.63]
[1760023833924,4.02021563,219.83,219.71,20.8]
[1760023834138,4.02021563,219.83,219.72,33.61]
[1760023834320,4.02021563,219.83,219.73,0.63]
[1760023834521,0.45163038,219.84,219.73,0.63]
[1760023834721,5.17184601,219.84,219.74,15.9279148]
[1760023834922,4.02021563,219.82,219.74,15.9279148]
[1760023835127,4.02021563,219.75,219.61,4.5614222]
[1760023835328,4.02021563,219.68,219.63,4.55311205]
[1760023835536,0.7,219.74,219.64,0.63]
[1760023835917,0.45163038,219.77,219.65,10.87647521]
[1760023836242,0.45163038,219.78,219.67,10.87647521]
[1760023836431,4.02021563,219.79,219.68,33.73]
[1760023836639,1.15163038,219.78,219.69,0.63]
[1760023836826,1.15163038,219.78,219.68,4.55207574]
[1760023837031,4.02021563,219.73,219.68,4.55207574]
[1760023837231,4.02021563,219.74,219.68,4.55207574]
[1760023837427,4.02021563,219.74,219.68,15.9322651]
[1760023838149,4.02021563,219.74,219.68,4.55207574]
[1760023838344,4.02021563,219.71,219.68,4.55207574]
[1760023838650,0.7,219.73,219.68,4.55207574]
[1760023838651,4.02021563,219.73,219.68,4.55207574]
[1760023838830,4.02021563,219.73,219.67,4.55228296]
[1760023839147,4.02021563,219.73,219.68,11.38018936]
[1760023839534,0.7,219.72,219.68,11.38018936]
[1760023839732,4.72021563,219.72,219.68,11.38018936]
[1760023841020,4.02021563,219.75,219.69,0.63]
[1760023841337,4.72021563,219.77,219.69,0.63]
[1760023841546,4.02021563,219.77,219.69,0.63]
[1760023841847,4.72021563,219.77,219.7,33.1]
[1760023842642,0.7,219.77,219.71,15.93008965]
[1760023842958,4.72021563,219.77,219.71,15.93008965]
[1760023843155,0.7,219.77,219.71,15.93008965]
[1760023843736,4.02021563,219.77,219.71,15.93008965]
[1760023843941,4.02021563,219.79,219.71,16.56008965]
[1760023844534,0.45163038,219.8,219.73,15.92863969]
[1760023844754,4.47184601,219.82,219.73,15.92863969]
[1760023844950,4.47184601,219.82,219.74,0.63]
[1760023845130,0.72,219.83,219.74,0.63]
[1760023845131,0.72,219.83,219.75,33.08]
[1760023845455,4.74021563,219.83,219.75,33.08]
[1760023846649,4.74021563,219.83,219.76,15.92646522]
[1760023847869,22.2438753,219.93,219.76,15.92646522]
[1760023847870,0.68,219.86,219.77,0.63]
[1760023848038,4.02021563,219.84,219.76,38.67855841]
[1760023848232,4.02021563,219.83,219.76,38.67855841]
[1760023848459,4.02021563,219.83,219.77,33.67]
[1760023848643,4.02021563,219.83,219.78,15.92501592]
[1760023848961,1.13163038,219.85,219.78,15.92501592]
[1760023848962,4.02021563,219.84,219.78,15.92501592]
[1760023849455,0.45163038,219.87,219.78,38.67503867]
[1760023849633,4.02021563,219.9,219.79,33.65]
[1760023849843,4.02021563,219.9,219.8,0.63]
[1760023850260,3.0425588,219.95,219.85,10.87647521]
[1760023850474,0.68,219.98,219.86,33.65]
[1760023850651,3.04173304,220.0,219.88,10.87647521]
[1760023850834,4.90021563,220.01,219.89,0.63]
[1760023851234,0.2,220.01,219.9,10.87647521]
[1760023851430,0.2,220.01,219.92,10.87647521]
[1760023851637,0.2,220.01,219.96,10.87647521]
[1760023851855,0.2,220.01,219.97,33.12]
[1760023852145,0.2,220.01,219.98,10.87647521]
[1760023852338,0.68,220.11,220.01,20.8]
[1760023852541,3.48598671,220.15,220.03,15.90692177]
[1760023852762,0.68,220.14,220.04,0.63]
[1760023853759,3.48526102,220.2,220.06,20.8]
[1760023853760,4.02021563,220.17,220.06,20.8]
[1760023853942,0.68,220.17,220.07,33.75]
[1760023854143,0.45163038,220.17,220.08,0.63]
[1760023854469,1.13163038,220.2,220.09,33.12]
[1760023854663,0.68,220.2,220.1,16.53186278]
[1760023855240,0.68,220.2,220.11,11.50647521]
[1760023855659,0.88,220.24,220.12,0.63]
[1760023856048,0.45163038,220.23,220.12,0.63]
[1760023856565,0.88,220.24,220.14,20.8]
[1760023856773,0.2,220.24,220.15,33.73]
[1760023856949,0.2,220.24,220.16,0.63]
[1760023857370,0.2,220.24,220.16,21.43]
[1760023857678,0.68,220.23,220.17,33.1]
[1760023858169,4.02021563,220.2,220.16,33.08]
[1760023858542,0.68,220.22,220.16,33.08]
[1760023858543,4.02021563,220.21,220.16,33.08]
[1760023858755,0.68,220.21,220.16,37.62197554]
[1760023859166,0.2,220.24,220.16,37.62197554]
[1760023859167,0.88,220.24,220.16,37.62197554]
[1760023859378,4.47184601,220.23,220.16,37.62197554]
[1760023859853,0.45163038,220.23,220.16,37.62197554]
[1760023860766,5.9736927,220.2,220.03,22.72392265]
[1760023860964,5.9736927,220.16,220.07,0.63]
[1760023861163,5.9736927,220.16,220.04,26.78267407]
[1760023861164,0.68,220.16,220.04,26.78267407]
[1760023861361,5.9736927,220.15,220.05,65.36647521]
[1760023861572,5.9736927,220.15,220.05,44.56647521]
[1760023861776,7.10532308,220.14,220.06,33.06]
[1760023862072,1.13163038,220.14,220.06,33.06]
[1760023862281,0.68,220.13,220.07,33.06]
[1760023862585,0.68,220.21,220.08,0.63]
[1760023862762,0.45163038,220.2,220.09,15.9025853]
[1760023862955,5.9736927,220.19,220.09,15.9025853]
[1760023863160,0.68,220.2,220.1,33.71]
[1760023863357,1.13163038,220.2,220.1,33.71]
[1760023863685,5.9736927,220.18,220.09,25.3435958]
[1760023863857,5.9736927,220.16,220.09,4.5435958]
[1760023864056,0.45163038,220.15,220.09,33.06]
[1760023864256,6.42532308,220.15,220.09,33.06]
[1760023864563,7.10532308,220.17,220.09,33.06]
[1760023864876,0.45163038,220.16,220.09,33.06]
[1760023865069,0.45163038,220.16,220.09,37.60358293]
[1760023865473,6.42532308,220.16,220.09,37.60358293]
[1760023865675,0.68,220.15,220.07,4.54392142]
[1760023865860,6.6536927,220.15,220.09,33.06]
[1760023866055,0.45163038,220.17,220.09,33.06]
[1760023866283,0.45163038,220.17,220.1,0.63]
[1760023866495,1.13163038,220.23,220.12,20.8]
[1760023866698,0.2,220.24,220.14,15.89897337]
[1760023866998,0.2,220.24,220.15,33.1]
[1760023867215,0.45163038,220.23,220.11,33.1]
[1760023867412,5.9736927,220.16,220.11,33.1]
[1760023867576,0.68,220.2,220.11,33.73]
[1760023867777,6.42532308,220.19,220.11,33.73]
[1760023868081,5.9736927,220.18,220.11,33.73]
[1760023868285,0.45163038,220.17,220.11,33.73]
[1760023868596,5.9736927,220.16,220.11,33.1]
[1760023869099,5.9736927,220.16,220.11,37.64309178]
[1760023869295,0.68,220.17,220.11,37.64309178]
[1760023869503,6.6536927,220.17,220.11,4.54309178]
[1760023869677,6.6536927,220.17,220.11,37.64309178]
[1760023869878,5.9736927,220.16,220.11,37.64309178]
[1760023870080,0.45163038,220.2,220.12,0.63]
[1760023870699,1.33163038,220.24,220.12,0.63]
[1760023871501,5.9736927,220.21,220.11,15.90104916]
[1760023871680,6.42532308,220.2,220.13,33.1]
[1760023872088,0.45163038,220.2,220.14,4.54256382]
[1760023872291,6.42532308,220.2,220.14,4.54256382]
[1760023873195,5.9736927,220.19,220.14,4.54256382]
[1760023873401,0.72,220.18,220.14,37.62256382]
[1760023873601,0.2,220.24,220.14,48.97897337]
[1760023873781,7.14532308,220.23,220.14,49.60897337]
[1760023873979,7.14532308,220.23,220.14,48.97897337]
[1760023873980,0.45163038,220.23,220.14,48.97897337]
[1760023874180,0.2,220.24,220.16,15.89752906]
[1760023874580,0.2,220.24,220.17,0.63]
[1760023874980,0.2,220.24,220.19,20.8]
[1760023875185,0.2,220.24,220.2,33.71]
[1760023875601,0.2,220.24,220.21,0.63]
[1760023875795,0.2,220.24,220.22,33.71]
[1760023876201,0.2,220.24,220.23,4.54070744]
[1760023876390,0.2,220.24,220.22,37.6208169]
[1760023877725,0.2,220.24,220.23,0.63]
[1760023878298,0.2,220.24,220.23,5.17070744]
[1760023878618,0.2,220.24,220.23,33.04]
[1760023879625,0.2,220.28,220.23,33.67]
[1760023879919,0.2,220.28,220.21,15.89391944]
[1760023879920,0.2,220.28,220.24,33.69]
[1760023880120,0.2,220.28,220.21,15.89391944]
[1760023880121,0.72,220.27,220.25,33.06]
[1760023880323,0.72,220.26,220.18,11.35411956]
[1760023880499,5.9736927,220.25,220.19,37.62153231]
[1760023880815,0.2,220.28,220.22,20.8]
[1760023881110,5.9736927,220.26,220.2,20.8]
[1760023881414,5.9736927,220.21,220.05,11.36067023]
[1760023881618,1.17163038,220.2,220.06,5.17405283]
[1760023881794,1.17163038,220.2,220.09,20.8]
[1760023881995,5.9736927,220.17,220.09,20.8]
[1760023882202,5.9736927,220.15,220.1,33.18]
[1760023882411,5.9736927,220.15,220.06,4.54401636]
[1760023882609,5.9736927,220.12,220.07,33.2]
[1760023882818,5.9736927,220.13,220.08,33.2]
[1760023883010,6.6936927,220.13,220.08,33.2]
[1760023883317,6.6936927,220.13,220.07,20.8]
[1760023883518,5.9736927,220.12,220.08,33.18]
[1760023883718,5.9736927,220.1,220.05,33.18]
[1760023883924,6.6936927,220.1,220.05,33.18]
[1760023884124,0.72,220.1,220.05,33.18]
[1760023884428,0.72,220.1,220.06,4.54421521]
[1760023885111,1.17163038,220.09,219.97,0.63]
[1760023885427,7.14532308,220.09,220.01,20.8]
[1760023885797,1.17163038,220.09,220.01,20.8]
[1760023886002,7.14532308,220.09,220.01,20.8]
[1760023886906,7.14532308,220.09,220.02,4.54504135]
[1760023887223,7.14532308,220.09,220.03,33.18]
[1760023887421,0.45163038,220.09,220.04,0.63]
[1760023887612,0.45163038,220.15,220.07,20.8]
[1760023887817,0.45163038,220.15,220.08,33.24]
[1760023888213,0.45163038,220.15,220.09,4.5435958]
[1760023888605,0.45163038,220.16,220.09,4.5435958]
[1760023889023,5.9736927,220.14,220.09,33.22]
[1760023889224,7.14532308,220.13,220.09,33.22]
[1760023889426,0.72,220.12,220.06,4.54421521]
[1760023889614,0.45163038,220.11,220.07,33.22]
[1760023889815,0.72,220.1,220.07,33.22]
[1760023890015,6.42532308,220.11,220.07,33.22]
[1760023890327,0.72,220.09,220.07,33.22]
[1760023890628,0.45163038,220.11,220.07,4.54392447]
[1760023890827,1.17163038,220.11,220.07,4.54392447]
[1760023891026,3.01503868,220.15,220.07,15.90394628]
[1760023891216,0.45163038,220.16,220.08,0.63]
[1760023891619,0.45163038,220.17,220.08,0.63]
[1760023891815,20.8,220.21,220.09,31.67647521]
[1760023891816,0.45163038,220.2,220.09,31.67647521]
[1760023892134,0.45163038,220.2,220.1,33.83]
[1760023892307,6.42532308,220.2,220.1,33.83]
[1760023892632,0.45163038,220.2,220.12,10.87647521]
[1760023892810,0.72,220.22,220.13,0.63]
[1760023893015,0.45163038,220.21,220.13,0.63]
[1760023894308,3.03364195,220.2,220.13,0.63]
[1760023894628,0.72,220.22,220.03,20.8]
[1760023894629,1.17163038,220.22,220.03,20.8]
[1760023894819,5.9736927,220.15,220.04,0.63]
[1760023895006,6.6936927,220.15,220.08,20.8]
[1760023895210,3.03967679,220.14,220.08,20.8]
[1760023895439,6.6936927,220.15,220.06,0.63]
[1760023895629,3.03967754,220.14,220.06,0.63]
[1760023895937,0.45163038,220.14,220.06,0.63]
[1760023896327,3.04227118,220.13,220.06,0.63]
[1760023896631,0.72,220.15,220.07,15.90403053]
[1760023896839,3.04227155,220.14,220.08,0.63]
[1760023897019,3.04227155,220.13,220.09,10.87647521]
[1760023897215,0.45163038,220.19,220.1,33.81]
[1760023897418,3.04324983,220.18,220.1,33.81]
[1760023897628,3.04324983,220.17,220.11,33.16]
[1760023897829,3.72613549,220.2,220.11,33.16]
[1760023897830,0.45163038,220.2,220.11,33.16]
[1760023898011,3.0428718,220.19,220.11,33.79]
[1760023898213,3.0428718,220.18,220.11,33.79]
[1760023898520,3.0428718,220.17,220.11,33.79]
[1760023898818,3.04327381,220.16,220.12,4.54297655]
[1760023899027,1.17163038,220.21,220.13,0.63]
[1760023899217,3.04323975,220.2,220.13,0.63]
[1760023899414,3.04323975,220.19,220.14,33.14]
[1760023899608,3.72613549,220.24,220.14,33.14]
[1760023899609,3.04305313,220.18,220.15,0.63]
[1760023899813,5.9736927,220.23,220.16,0.63]
[1760023899814,0.45163038,220.22,220.16,0.63]
[1760023900014,3.04290725,220.21,220.14,33.14]
[1760023900229,3.04290725,220.2,220.14,33.14]
[1760023900422,0.45163038,220.22,220.14,33.14]
[1760023900626,0.45163038,220.24,220.15,0.63]
[1760023900833,3.04256422,220.23,220.16,15.89752906]
[1760023901022,3.04256422,220.22,220.16,15.89752906]
[1760023901238,7.14532308,220.24,220.16,4.54215116]
[1760023901422,9.01625056,220.23,220.16,4.54215116]
[1760023901629,3.04255786,220.22,220.16,4.54215116]
[1760023901942,8.2660391,220.27,220.18,10.87647521]
[1760023901943,3.72613549,220.27,220.18,10.87647521]
[1760023902116,3.04174229,220.26,220.18,10.87647521]
[1760023902323,0.72,220.25,220.17,20.8]
[1760023902638,0.72,220.25,220.18,33.22]
[1760023902815,0.72,220.25,220.19,15.89536309]
[1760023903014,0.72,220.25,220.19,49.11536309]
[1760023903635,0.45163038,220.26,220.19,49.11536309]
[1760023904015,0.87,220.28,220.19,49.11536309]
[1760023904016,6.42532308,220.27,220.19,49.11536309]
[1760023905222,6.42532308,220.27,220.15,22.71128434]
[1760023905223,0.67,220.26,220.16,11.35507364]
[1760023905439,0.45163038,220.27,220.15,46.53063118]
[1760023905440,20.8,220.24,220.15,46.53063118]
[1760023905625,5.9736927,220.22,220.15,51.07297038]
[1760023905833,0.45163038,220.21,220.15,37.7223392]
[1760023906242,7.09532308,220.23,220.15,49.0782329]
[1760023906419,5.9736927,220.18,220.11,20.8]
[1760023906618,3.04198937,220.22,220.12,33.2]
[1760023906856,6.42532308,220.21,220.13,33.83]
[1760023907035,6.6436927,220.2,220.14,33.2]
[1760023907230,0.45163038,220.19,220.14,33.2]
[1760023908038,20.8,220.24,220.14,33.2]
[1760023908039,0.45163038,220.22,220.15,0.63]
[1760023908734,5.9736927,220.24,220.15,0.63]
[1760023908934,0.45163038,220.25,220.18,15.89608501]
[1760023909249,0.45163038,220.26,220.19,33.81]
[1760023910150,0.45163038,220.27,220.19,33.81]
[1760023910335,0.65163038,220.28,220.2,0.63]
[1760023910650,1.32163038,220.28,220.2,0.63]
[1760023910949,0.65163038,220.28,220.21,15.89391944]
[1760023911148,1.32163038,220.28,220.21,15.89391944]
[1760023911651,0.2,220.28,220.21,16.52391944]
[1760023912028,0.2,220.28,220.21,4.54111984]
[1760023912251,5.9736927,220.25,220.21,37.72111984]
[1760023912453,0.45163038,220.24,220.21,37.72111984]
[1760023912757,5.9736927,220.26,220.21,37.72111984]
[1760023912931,0.45163038,220.25,220.21,37.72111984]
[1760023913267,5.9736927,220.23,220.14,20.8]
[1760023913432,5.9736927,220.22,220.17,33.18]
[1760023913631,6.6436927,220.22,220.17,33.18]
[1760023913836,0.67,220.21,220.17,33.18]
[1760023914148,6.6436927,220.24,220.17,33.18]
[1760023914326,0.45163038,220.23,220.17,33.18]
[1760023914723,5.9736927,220.25,220.17,33.18]
[1760023914945,5.9736927,220.23,220.18,33.16]
[1760023915143,1.12163038,220.22,220.18,33.16]
[1760023915340,0.67,220.21,220.18,33.16]
[1760023915546,0.67,220.21,220.13,31.67647521]
[1760023915547,6.6436927,220.2,220.17,4.54194486]
[1760023915756,0.45163038,220.24,220.17,4.54194486]
[1760023915958,5.9736927,220.22,220.17,4.54194486]
[1760023916257,5.9736927,220.25,220.18,0.63]
[1760023916455,0.45163038,220.24,220.18,0.63]
[1760023917032,0.45163038,220.24,220.19,4.54153231]
[1760023917244,6.6436927,220.26,220.19,4.54153231]
[1760023917245,0.45163038,220.25,220.2,0.63]
[1760023917542,0.45163038,220.25,220.19,15.89536309]
[1760023917543,1.12163038,220.25,220.19,15.89536309]
[1760023918333,0.45163038,220.27,220.2,0.63]
[1760023918548,0.45163038,220.27,220.21,33.14]
[1760023920237,0.2,220.28,220.22,5.17091363]
[1760023920657,0.45163038,220.27,220.22,15.8931977]
[1760023920956,6.6436927,220.26,220.2,4.5411502]
[1760023921261,5.9736927,220.24,220.2,37.6611502]
[1760023921467,0.45163038,220.25,220.2,37.6611502]
[1760023921642,0.65163038,220.28,220.21,0.63]
[1760023922256,0.2,220.28,220.22,15.8931977]
[1760023922555,0.2,220.28,220.23,11.50647521]
[1760023922775,0.2,220.28,220.24,33.12]
[1760023922939,0.2,220.28,220.24,114.65]
[1760023923147,0.2,220.28,220.25,0.63]
[1760023923350,0.2,220.28,220.26,0.63]
[1760023923545,0.2,220.28,220.27,0.63]
[1760023923861,0.2,220.28,220.27,21.43]
[1760023924062,0.67,220.38,220.28,10.87647521]
[1760023924244,0.67,220.38,220.29,33.73]
[1760023924557,0.67,220.38,220.3,16.51742622]
[1760023925063,0.45163038,220.4,220.33,20.8]
[1760023925250,0.67,220.42,220.34,33.1]
[1760023925251,1.12163038,220.42,220.34,33.1]
[1760023925647,0.45163038,220.42,220.34,33.1]
[1760023925865,0.2,220.44,220.35,0.63]
[1760023926179,0.2,220.44,220.39,20.8]
[1760023926462,0.2,220.44,220.43,20.8]
[1760023926661,0.2,220.46,220.44,20.8]
[1760023926874,0.2,220.46,220.45,33.12]
[1760023927258,0.2,220.46,220.45,33.75]
[1760023927639,0.2,220.46,220.44,20.8]
[1760023927860,0.2,220.46,220.45,33.12]
[1760023928363,0.2,220.46,220.45,37.656176]
[1760023928677,0.2,220.46,220.45,38.286176]
[1760023928857,0.2,220.46,220.45,37.656176]
[1760023929747,0.2,220.46,220.45,38.286176]
[1760023929947,0.2,220.46,220.45,37.656176]
[1760023930943,0.2,220.46,220.45,4.536176]
[1760023931263,4.87122833,220.46,220.41,33.08]
[1760023931466,4.00122833,220.44,220.35,0.63]
[1760023931767,4.00122833,220.43,220.36,33.08]
[1760023932267,0.45163038,220.45,220.36,33.08]
[1760023932451,0.65163038,220.46,220.38,15.88165894]
[1760023932655,5.32285871,220.46,220.39,33.08]
[1760023932962,1.32163038,220.46,220.39,33.08]
[1760023933762,1.32163038,220.46,220.38,15.88165894]
[1760023933763,4.00122833,220.45,220.38,15.88165894]
[1760023933962,4.45285871,220.44,220.39,33.08]
[1760023934161,1.32163038,220.46,220.39,33.08]
[1760023934366,4.00122833,220.45,220.39,33.08]
[1760023934542,5.32285871,220.46,220.39,33.08]
[1760023934748,5.32285871,220.46,220.4,4.53720508]
[1760023935076,4.00122833,220.45,220.4,4.53720508]
[1760023935370,4.00122833,220.41,220.34,32.14568255]
[1760023935561,4.00122833,220.41,220.35,33.06]
[1760023935562,4.00122833,220.4,220.35,33.06]
[1760023935764,0.67,220.43,220.35,15.88382118]
[1760023935952,20.8,220.47,220.36,33.06]
[1760023936667,4.00122833,220.48,220.31,10.87647521]
[1760023936668,4.00122833,220.4,220.33,4.53864657]
[1760023936975,4.00122833,220.4,220.34,33.06]
[1760023937348,20.8,220.45,220.34,33.76]
[1760023937675,25.3361761,220.45,220.34,33.76]
[1760023938052,0.67,220.44,220.35,33.02]
[1760023938352,0.67,220.43,220.35,33.02]
[1760023938861,24.80122833,220.45,220.36,5.23802868]
[1760023939062,4.00122833,220.42,220.36,4.53802868]
[1760023939252,0.67,220.41,220.36,37.55802868]
[1760023939449,0.67,220.4,220.36,37.55802868]
[1760023939743,4.67122833,220.39,220.31,20.8]
[1760023940068,4.67122833,220.39,220.32,37.55885257]
[1760023940268,10.87647521,220.44,220.32,38.25885257]
[1760023940482,4.00122833,220.39,220.32,38.25885257]
[1760023940993,4.00122833,220.39,220.32,49.60598401]
[1760023941154,4.00122833,220.42,220.33,0.72]
[1760023941355,0.72,220.46,220.35,20.8]
[1760023941585,4.00122833,220.45,220.36,33.72]
[1760023942284,4.00122833,220.43,220.36,33.72]
[1760023942782,4.00122833,220.44,220.37,4.53782275]
[1760023942991,4.00122833,220.42,220.38,33.02]
[1760023943561,4.00122833,220.42,220.37,33.02]
[1760023944084,4.00122833,220.43,220.38,0.72]
[1760023944380,4.00122833,220.43,220.37,33.02]
[1760023944566,4.00122833,220.42,220.38,4.53761684]
[1760023944981,4.00122833,220.43,220.38,4.53761684]
[1760023945268,4.72122833,220.43,220.38,4.53761684]
[1760023945469,4.00122833,220.46,220.39,0.72]
[1760023946675,24.80122833,220.47,220.4,4.53720508]
[1760023946872,4.00122833,220.49,220.41,33.7]
[1760023947179,4.20122833,220.5,220.41,32.98]
[1760023947371,20.8,220.49,220.42,0.72]
[1760023947686,25.52122833,220.49,220.42,0.72]
[1760023947885,4.00122833,220.48,220.42,0.72]
[1760023948474,4.00122833,220.48,220.43,32.96]
[1760023948790,4.72122833,220.48,220.43,37.49647457]
[1760023948984,0.72,220.48,220.43,37.49647457]
[1760023949181,0.2,220.5,220.44,0.72]
[1760023949764,0.2,220.5,220.45,32.96]
[1760023949985,0.2,220.5,220.46,0.72]
[1760023950190,0.2,220.5,220.47,32.96]
[1760023950394,4.20122833,220.5,220.43,4.53647457]
[1760023950573,4.00122833,220.48,220.45,4.536176]
[1760023950772,0.2,220.5,220.45,32.96]
[1760023950773,4.20122833,220.5,220.45,32.96]
[1760023951092,0.2,220.5,220.45,32.96]
[1760023951278,0.2,220.5,220.46,0.72]
[1760023951471,0.2,220.5,220.47,0.72]
[1760023951672,0.2,220.5,220.45,32.96]
[1760023951673,0.2,220.5,220.48,0.72]
[1760023952593,0.2,220.5,220.49,0.72]
[1760023952819,0.2,220.5,220.49,5.25535307]
[1760023952963,0.2,220.5,220.49,38.21535307]
[1760023953996,0.2,220.5,220.49,5.25535307]
[1760023954201,0.2,220.5,220.49,38.19535307]
[1760023955593,4.20122833,220.56,220.49,49.53373576]
[1760023955799,4.00122833,220.52,220.44,0.72]
[1760023955981,4.00122833,220.5,220.44,12.06095445]
[1760023956298,4.00122833,220.5,220.45,32.92]
[1760023956511,0.2,220.56,220.46,0.72]
[1760023956710,0.2,220.56,220.47,15.87517575]
[1760023957033,4.20122833,220.56,220.48,0.72]
[1760023957184,4.00122833,220.55,220.49,32.92]
[1760023957504,4.00122833,220.5,220.45,32.92]
[1760023957692,0.72,220.54,220.45,33.64]
[1760023957888,4.00122833,220.49,220.45,33.64]
[1760023958087,4.00122833,220.49,220.46,0.72]
[1760023958387,4.00122833,220.5,220.46,0.72]
[1760023958889,4.00122833,220.51,220.47,4.5357645]
[1760023959188,4.00122833,220.51,220.47,5.2557645]
[1760023959603,4.00122833,220.51,220.46,4.53596251]
[1760023959793,4.00122833,220.51,220.46,37.45596251]
[1760023959994,4.00122833,220.51,220.46,38.17596251]
[1760023960708,4.00122833,220.51,220.48,4.53555878]
[1760023961410,4.00122833,220.51,220.48,5.25555878]
[1760023961583,4.00122833,220.51,220.47,32.9]
[1760023961584,0.72,220.53,220.44,0.72]
[1760023961789,4.00122833,220.51,220.45,32.9]
[1760023961990,20.8,220.55,220.46,0.72]
[1760023961991,4.00122833,220.53,220.46,0.72]
[1760023962214,0.2,220.56,220.46,0.72]
[1760023962898,0.2,220.56,220.47,15.87517575]
[1760023963097,4.00122833,220.54,220.48,0.72]
[1760023963307,4.00122833,220.53,220.49,32.9]
[1760023963689,4.00122833,220.53,220.49,33.62]
[1760023963890,4.00122833,220.54,220.49,32.9]
[1760023964108,4.00122833,220.54,220.49,33.62]
[1760023964421,0.92,220.56,220.49,32.9]
[1760023964616,4.20122833,220.56,220.5,0.72]
[1760023964910,4.20122833,220.56,220.46,15.87582261]
[1760023964911,4.00122833,220.53,220.48,32.88]
[1760023965292,0.71,220.55,220.48,32.88]
[1760023965293,4.00122833,220.52,220.48,32.88]
[1760023965494,4.00122833,220.53,220.48,33.55]
[1760023965703,4.00122833,220.53,220.49,0.67]
[1760023965900,4.00122833,220.54,220.49,0.67]
[1760023966098,3.03455131,220.55,220.49,0.67]
[1760023966301,4.20122833,220.56,220.49,0.67]
[1760023966489,3.03455131,220.55,220.49,0.67]
[1760023966688,4.00122833,220.54,220.49,0.67]
[1760023966891,4.00122833,220.53,220.49,32.88]
[1760023967716,4.00122833,220.54,220.49,32.88]
[1760023968019,4.00122833,220.54,220.5,4.53514739]
[1760023968214,4.00122833,220.55,220.5,4.53514739]
[1760023968392,4.00122833,220.55,220.5,5.20514739]
[1760023968595,4.00122833,220.54,220.5,4.53514739]
[1760023969116,4.00122833,220.53,220.5,4.53514739]
[1760023969616,0.2,220.56,220.45,32.81024576]
[1760023969617,4.00122833,220.51,220.45,32.81024576]
[1760023969918,4.00122833,220.5,220.46,32.86]
[1760023970217,4.00122833,220.52,220.47,0.67]
[1760023971012,4.00122833,220.53,220.48,0.67]
[1760023971218,3.04242791,220.52,220.49,0.67]
[1760023971396,4.00122833,220.54,220.49,0.67]
[1760023971718,3.04234268,220.53,220.46,48.73589585]
[1760023971912,3.04234268,220.52,220.5,0.67]
[1760023972218,3.042155,220.54,220.51,4.53494172]
[1760023972396,1.62127117,220.55,220.51,4.53494172]
[1760023972597,0.2,220.56,220.52,0.67]
[1760023972818,3.04200551,220.55,220.51,4.53494172]
[1760023972999,1.82127117,220.56,220.51,5.20494172]
[1760023973200,3.04200538,220.55,220.51,5.20494172]
[1760023973498,1.82127117,220.56,220.51,5.20494172]
[1760023973816,3.04167506,220.55,220.51,5.20494172]
[1760023974028,1.82127117,220.56,220.51,5.20494172]
[1760023974319,4.1915944,220.56,220.51,5.20494172]
[1760023974997,4.1915944,220.56,220.51,4.53494172]
[1760023975202,4.1915944,220.56,220.52,0.67]
[1760023975416,0.2,220.56,220.53,0.67]
[1760023975723,0.2,220.56,220.51,15.87229603]
[1760023975724,0.2,220.56,220.51,4.53494172]
[1760023975924,3.9915944,220.55,220.52,32.78]
[1760023976097,0.2,220.56,220.5,32.8]
[1760023976098,3.9915944,220.53,220.5,32.8]
[1760023976303,3.9915944,220.52,220.5,32.8]
[1760023976713,3.9915944,220.53,220.5,38.00507916]
[1760023976903,3.9915944,220.54,220.51,0.67]
[1760023977099,3.9915944,220.55,220.51,0.67]
[1760023977303,0.2,220.56,220.5,37.33507916]
[1760023977304,4.1915944,220.56,220.52,5.20473607]